bitfinex/quotes_ETHUSD_20210701
["timestamp","ask_amount","ask_price","bid_price","bid_amount"]
[1625176993436,12.0633,2126.9,2126.2,10.40532]
[1625176993737,12.0633,2126.9,2126.1,1.0642]
[1625176993837,12.0633,2126.9,2126.0,7.05375]
[1625176994037,12.0633,2126.9,2125.9,9.40426]
[1625176994338,12.0633,2126.9,2125.6,0.40780533]
[1625176994486,20.0633,2126.9,2125.6,0.40780533]
[1625176994588,13.01,2126.9,2125.6,0.40780533]
[1625176994687,3.52759,2126.8,2125.6,0.40780533]
[1625176994969,8.53759,2126.8,2125.5,10.77504675]
[1625176995267,16.53759,2126.8,2125.5,10.77504675]
[1625176995368,7.05496,2126.4,2125.6,9.40585]
[1625176995969,7.05496,2126.4,2125.6,9.81389226]
[1625176996319,12.06496,2126.4,2125.6,9.81389226]
[1625176996622,12.06496,2126.4,2125.6,9.40585]
[1625176996820,7.05496,2126.4,2125.6,9.40585]
[1625176997075,7.05496,2126.4,2125.7,0.08]
[1625176997271,7.05496,2126.4,2125.6,9.81393313]
[1625176998470,7.05496,2126.4,2125.7,7.05471]
[1625176998571,5.01,2126.4,2125.7,7.05471]
[1625176998773,5.01,2126.6,2125.7,7.05471]
[1625176998972,8.53759,2126.8,2125.7,7.05471]
[1625176999121,3.52759,2126.8,2125.7,7.05471]
[1625176999222,8.53759,2126.8,2125.7,7.05471]
[1625176999925,8.53759,2126.8,2125.6,9.81393313]
[1625176999926,20.0,2126.4,2125.6,9.81393313]
[1625177000031,25.01,2126.4,2125.6,0.40808313]
[1625177000130,20.0,2126.1,2125.6,0.40808313]
[1625177000228,24.8384,2126.1,2125.6,0.40808313]
[1625177000325,29.8484,2126.1,2125.6,0.40808313]
[1625177000429,29.8484,2126.1,2125.2,0.40899799]
[1625177001130,44.90475,2126.1,2125.2,0.40899799]
[1625177001227,36.90475,2126.1,2125.2,0.40899799]
[1625177001328,30.8185,2126.1,2125.1,0.4091103]
[1625177001685,30.8185,2126.1,2125.2,0.40909623]
[1625177001841,53.8185,2126.1,2125.2,0.40909623]
[1625177001942,63.8185,2126.1,2125.1,0.40921194]
[1625177002088,68.66531025,2126.1,2125.1,0.40921194]
[1625177002190,0.08,2126.0,2125.1,0.40921194]
[1625177002641,10.7969,2125.6,2125.0,0.40933218]
[1625177002836,15.8069,2125.6,2125.0,0.40933218]
[1625177004376,13.02213449,2125.6,2125.0,0.40933218]
[1625177005083,20.0,2125.3,2125.0,0.40933218]
[1625177005181,2.653,2125.4,2125.0,0.40933218]
[1625177005280,5.01,2125.3,2125.0,0.40933218]
[1625177005381,5.01,2125.3,2124.8,0.4097731]
[1625177005382,25.01,2125.3,2124.8,0.4097731]
[1625177005480,7.663,2125.4,2124.8,0.4097731]
[1625177005780,7.663,2125.4,2124.8,0.2597731]
[1625177006133,17.07567,2125.4,2124.8,0.2597731]
[1625177006731,7.663,2125.4,2124.8,0.2597731]
[1625177006980,0.9242,2125.4,2124.8,0.2597731]
[1625177007132,6.409,2126.0,2124.8,0.2597731]
[1625177007227,5.01,2126.0,2124.8,0.2597731]
[1625177007332,14.34765,2126.1,2124.8,0.2597731]
[1625177007431,7.05779,2125.8,2124.8,0.2597731]
[1625177007527,12.06779,2125.8,2124.8,7.3178631]
[1625177008533,12.06779,2125.8,2124.8,0.2597731]
[1625177008683,20.06779,2125.8,2124.8,0.2597731]
[1625177009031,28.01,2125.8,2124.8,0.2597731]
[1625177009187,31.53942,2125.8,2124.8,0.2597731]
[1625177009382,51.53942,2125.8,2124.8,0.2597731]
[1625177009836,31.53942,2125.8,2124.4,17.10041797]
[1625177010034,0.06,2125.7,2124.4,17.10041797]
[1625177010135,7.059,2125.3,2124.5,7.05883]
[1625177010384,12.069,2125.3,2124.5,7.05883]
[1625177010487,7.059,2125.3,2124.5,7.05883]
[1625177010628,12.069,2125.3,2124.5,7.05883]
[1625177010727,7.059,2125.3,2124.5,7.05883]
[1625177010828,12.069,2125.3,2124.5,7.05883]
[1625177010930,14.42188,2125.7,2124.5,7.05883]
[1625177011031,14.42188,2125.7,2124.6,0.2]
[1625177011529,14.42188,2125.7,2124.4,10.23071808]
[1625177011731,22.42188,2125.7,2124.4,10.23071808]
[1625177011883,7.05823,2125.6,2124.9,7.05787]
[1625177012134,12.06823,2125.6,2124.7,9.41049]
[1625177012232,7.05823,2125.6,2124.7,9.41049]
[1625177012386,12.06823,2125.6,2124.4,10.23071808]
[1625177012483,11.93863,2125.6,2124.4,10.23071808]
[1625177012583,16.94863,2125.6,2124.4,10.23071808]
[1625177013485,16.94863,2125.6,2124.5,7.05878]
[1625177014339,16.94863,2125.6,2124.6,0.12]
[1625177014491,2.50914979,2126.1,2125.0,7.05712]
[1625177014591,21.3939,2126.2,2125.0,12.06712]
[1625177014688,10.4135,2126.2,2125.0,7.05712]
[1625177014789,12.9380843,2126.5,2125.0,7.05712]
[1625177015383,3.52873,2126.2,2125.0,7.05712]
[1625177015586,9.40947,2126.1,2125.0,7.05712]
[1625177015835,14.41947,2126.1,2125.0,7.05712]
[1625177015935,14.41947,2126.1,2125.1,0.1]
[1625177016032,5.01,2126.1,2125.1,3.2119]
[1625177016136,5.01,2126.1,2125.1,3.1119]
[1625177016233,8.53873,2126.2,2125.1,3.1119]
[1625177016335,3.52873,2126.2,2125.1,3.1119]
[1625177016435,8.53873,2126.2,2125.1,3.1119]
[1625177016738,7.05666,2125.9,2125.1,3.1119]
[1625177016938,12.06666,2125.9,2125.1,3.1119]
[1625177017334,12.06666,2125.9,2124.7,2.9]
[1625177017434,20.06666,2125.9,2124.7,2.9]
[1625177017531,13.01,2125.9,2124.6,11.32317304]
[1625177017734,13.01,2125.9,2124.6,10.5051]
[1625177018038,48.01,2125.9,2124.6,10.5051]
[1625177018143,7.05899,2125.2,2124.6,10.5051]
[1625177018237,7.05899,2125.2,2124.4,0.81881244]
[1625177018334,12.06899,2125.2,2124.4,0.81881244]
[1625177019038,5.01,2125.2,2124.4,0.81881244]
[1625177019138,9.41172,2125.5,2124.5,0.06]
[1625177019241,5.01,2125.5,2124.5,0.06]
[1625177019440,12.06807,2125.6,2124.5,0.06]
[1625177019586,9.28316439,2125.6,2124.6,0.04]
[1625177019825,9.28316439,2125.6,2124.5,0.81834956]
[1625177019926,5.01,2125.6,2124.5,0.81834956]
[1625177020030,27.26108,2125.8,2124.5,0.81834956]
[1625177020278,7.05828,2125.5,2124.8,7.05785]
[1625177020628,12.06828,2125.5,2124.8,7.05785]
[1625177020726,7.05828,2125.5,2124.8,7.05785]
[1625177020826,12.06828,2125.5,2124.8,7.05785]
[1625177021477,12.06828,2125.5,2124.6,9.41029]
[1625177022018,12.06828,2125.5,2124.3,0.81892564]
[1625177022220,12.06828,2125.5,2124.2,10.22944041]
[1625177022571,12.06828,2125.5,2124.2,9.40997]
[1625177022770,12.06828,2125.5,2124.2,15.23956784]
[1625177022919,12.06828,2125.5,2124.2,15.29956784]
[1625177023119,12.06828,2125.5,2124.2,14.47997]
[1625177023270,12.06828,2125.5,2124.2,14.41997]
[1625177023371,12.06828,2125.5,2124.6,7.05876]
[1625177024516,7.05828,2125.5,2124.6,7.05876]
[1625177024866,7.05828,2125.5,2124.7,0.06]
[1625177025062,9.41098,2125.7,2124.7,0.06]
[1625177025165,14.25108,2125.8,2124.5,4.3557]
[1625177025265,14.25108,2125.8,2124.6,2.3024]
[1625177025518,7.05783,2125.6,2125.0,7.05765]
[1625177025813,12.06783,2125.6,2125.0,7.05765]
[1625177025912,7.05783,2125.6,2125.0,7.05765]
[1625177026014,12.06783,2125.6,2125.0,7.05765]
[1625177026912,12.06783,2125.6,2125.0,7.00765]
[1625177027916,32.06783,2125.6,2124.7,9.41043]
[1625177028773,25.01,2125.6,2124.4,6.87]
[1625177029472,32.06783,2125.6,2124.7,9.41043]
[1625177030776,32.06783,2125.6,2124.4,9.41145]
[1625177031994,35.59747,2125.6,2124.6,7.05895]
[1625177032087,28.53964,2125.6,2124.6,7.05895]
[1625177033144,25.01,2125.6,2124.6,7.05895]
[1625177033329,7.05844,2125.4,2124.4,9.41145]
[1625177033480,7.05844,2125.4,2124.5,0.12]
[1625177033579,12.06844,2125.4,2124.5,0.12]
[1625177034730,12.06844,2125.4,2124.4,14.42145]
[1625177034832,9.28342374,2125.4,2124.8,7.05825]
[1625177036042,4.27342374,2125.4,2124.8,7.05825]
[1625177036142,4.84557983,2126.0,2124.8,10.91025]
[1625177036301,1.70957914,2126.6,2124.9,0.35385358]
[1625177036497,1.70957914,2126.6,2125.1,0.19076103]
[1625177036901,2.93126931,2127.9,2125.4,35.05]
[1625177037029,0.01025188,2127.6,2125.9,3.1]
[1625177037124,0.2,2127.9,2126.0,0.37672159]
[1625177037226,0.2,2127.9,2126.9,11.99368]
[1625177037376,0.2,2127.9,2127.0,0.05495094]
[1625177037478,0.2,2127.9,2127.0,0.11495094]
[1625177037574,0.2,2127.9,2127.0,0.06]
[1625177037742,0.2,2127.9,2126.9,9.9955092]
[1625177038296,0.2,2127.9,2127.4,10.78667]
[1625177038490,0.2,2127.9,2127.5,0.14]
[1625177038794,0.2,2127.9,2127.4,9.8613]
[1625177039294,0.2,2127.9,2127.4,16.91009]
[1625177039393,0.2,2127.9,2127.4,4.8513]
[1625177040300,0.2,2127.9,2126.9,4.9431]
[1625177041458,20.0,2127.7,2126.5,9.40171]
[1625177041560,15.0,2127.6,2126.5,9.40171]
[1625177041661,15.0,2127.6,2126.3,10.3944]
[1625177041757,15.0,2127.6,2126.0,10.3498]
[1625177041758,20.01,2127.6,2126.0,10.3498]
[1625177042058,20.0,2127.2,2126.0,10.3498]
[1625177042245,23.7678,2127.2,2125.8,10.7019]
[1625177042343,8.7778,2127.2,2125.3,10.5071]
[1625177042448,20.0,2127.1,2125.9,0.08]
[1625177042547,15.0,2127.0,2125.9,0.08]
[1625177042651,15.0,2127.0,2125.1,10.32]
[1625177042652,20.0,2126.6,2125.1,10.32]
[1625177042802,20.0,2126.5,2125.0,20.2356]
[1625177043046,25.01,2126.5,2125.0,20.2356]
[1625177043145,25.01,2126.5,2125.0,10.3133]
[1625177043394,20.01,2126.5,2125.0,10.3133]
[1625177043544,20.0,2126.4,2125.0,10.3133]
[1625177043743,25.01,2126.4,2125.0,10.3133]
[1625177043897,7.05692,2126.1,2125.1,9.4078]
[1625177043994,7.05692,2126.1,2124.8,11.75688]
[1625177043995,10.40222,2126.1,2124.8,11.75688]
[1625177044151,20.0,2126.0,2124.5,0.81605266]
[1625177044248,35.0,2126.0,2124.4,21.0997]
[1625177044343,20.0,2125.9,2124.4,21.0997]
[1625177044565,5.01,2125.9,2124.4,10.816]
[1625177044768,35.0,2126.0,2124.4,10.816]
[1625177044769,40.01,2126.0,2124.4,10.816]
[1625177044916,5.01,2126.0,2124.5,0.1]
[1625177045016,12.1705,2126.1,2124.8,7.05769]
[1625177045017,7.05832,2125.8,2124.8,7.05769]
[1625177045215,12.06832,2125.8,2124.8,7.05769]
[1625177045317,12.06832,2125.8,2124.4,17.686]
[1625177045417,20.06832,2125.8,2124.4,17.686]
[1625177045517,20.01,2125.8,2124.4,17.686]
[1625177045617,20.01,2125.8,2124.4,6.87]
[1625177045618,5.01,2125.8,2124.4,6.87]
[1625177045716,20.0,2125.7,2124.4,6.87]
[1625177045865,25.1805,2126.1,2124.4,6.87]
[1625177045967,25.1805,2126.1,2124.5,0.12]
[1625177046266,15.0,2126.0,2124.4,6.87]
[1625177046470,20.01,2126.0,2124.4,6.87]
[1625177046568,5.01,2126.0,2124.4,11.88]
[1625177046698,5.01,2126.0,2124.4,6.87]
[1625177046799,45.1805,2126.1,2124.4,6.87]
[1625177047207,40.1805,2126.1,2124.4,6.87]
[1625177047303,60.1805,2126.1,2124.4,6.87]
[1625177047404,7.05821,2125.8,2124.7,7.05796]
[1625177047603,12.06821,2125.8,2124.7,7.05796]
[1625177049158,5.01,2125.8,2124.7,12.06796]
[1625177049358,4.1,2126.1,2124.8,0.2]
[1625177049359,5.01,2126.1,2124.8,0.2]
[1625177049656,14.41979,2126.2,2124.8,0.2]
[1625177050257,14.41979,2126.2,2124.6,14.42015]
[1625177050457,7.05733,2126.1,2125.1,7.0567]
[1625177050559,12.06733,2126.1,2125.1,7.0567]
[1625177050764,5.01,2126.1,2125.1,7.0567]
[1625177050959,5.01,2126.4,2125.1,7.0567]
[1625177051059,34.21157738,2126.5,2125.1,7.0567]
[1625177051405,54.21157738,2126.5,2125.1,7.0567]
[1625177051505,20.0,2126.4,2125.1,7.0567]
[1625177051606,7.05656,2126.3,2125.1,7.0567]
[1625177051865,32.06656,2126.3,2125.1,7.0567]
[1625177051966,7.05656,2126.3,2125.1,7.0567]
[1625177052118,12.06656,2126.3,2125.1,7.0567]
[1625177052216,15.05656,2126.3,2125.1,7.0567]
[1625177052317,20.0,2126.2,2125.1,7.0567]
[1625177052421,35.0,2126.2,2124.9,9.40894]
[1625177052522,51.2074,2126.2,2124.6,9.41015]
[1625177052617,53.9665,2126.2,2124.6,9.41015]
[1625177052718,7.05837,2125.8,2124.6,9.41015]
[1625177052919,12.06837,2125.8,2124.6,9.41015]
[1625177053507,12.06837,2125.8,2124.6,14.42015]
[1625177054254,5.01,2125.8,2124.7,0.06]
[1625177054455,5.01,2126.0,2124.7,0.06]
[1625177054559,20.01,2126.1,2124.7,0.06]
[1625177055412,7.05751,2126.0,2124.9,7.05743]
[1625177055560,12.06751,2126.0,2124.9,7.05743]
[1625177057711,3.6,2125.2,2124.9,7.05743]
[1625177057956,3.6,2125.2,2125.0,0.12]
[1625177058210,3.6,2125.2,2125.0,7.17665]
[1625177058313,3.6,2125.2,2125.0,10.33425]
[1625177058468,3.6,2125.2,2125.1,24.66]
[1625177058614,3.6,2125.2,2125.1,0.16]
[1625177058808,20.0,2126.5,2125.2,21.0]
[1625177059013,20.0,2126.5,2125.3,0.2]
[1625177059215,20.13989,2126.7,2125.2,21.0]
[1625177059413,17.33989,2126.7,2125.2,26.01]
[1625177059913,7.05575,2126.4,2125.2,12.06623]
[1625177060219,7.05575,2126.4,2125.3,0.04]
[1625177060563,4.6113,2126.4,2125.3,0.04]
[1625177060721,18.04994087,2127.2,2125.3,0.04]
[1625177060722,2.91124087,2127.2,2125.3,0.04]
[1625177060818,2.91124087,2127.2,2125.4,0.10143566]
[1625177060920,2.91124087,2127.2,2125.4,0.30143566]
[1625177061019,0.01124087,2127.2,2126.3,10.81844]
[1625177061116,10.8877,2127.7,2126.3,10.81844]
[1625177061270,10.8877,2127.7,2126.4,0.1]
[1625177061417,0.2,2127.9,2126.4,0.1]
[1625177061521,0.2,2127.9,2126.4,0.15256533]
[1625177061614,0.2,2127.9,2126.4,0.1]
[1625177061714,0.2,2127.9,2126.4,0.14470553]
[1625177062164,0.2,2127.9,2126.9,11.5457]
[1625177063358,0.2,2127.9,2126.9,16.5557]
[1625177063460,3.52502,2127.5,2126.9,9.5054]
[1625177063558,10.5750582,2127.5,2126.9,9.5054]
[1625177063909,10.5750582,2127.5,2126.9,4.4954]
[1625177064362,7.05029,2127.2,2126.9,4.4954]
[1625177064609,7.05029,2127.2,2126.2,1.3321]
[1625177064741,7.05029,2127.2,2125.5,5.28201453]
[1625177064742,3.5266438,2126.6,2125.5,5.28201453]
[1625177064829,3.5266438,2126.6,2125.8,10.6347]
[1625177064830,7.0533338,2126.6,2125.8,10.6347]
[1625177065081,7.0533338,2126.6,2125.9,0.12]
[1625177065224,7.0533338,2126.6,2125.3,0.27232744]
[1625177065326,7.0533338,2126.6,2125.2,0.27251654]
[1625177065429,7.05356,2126.0,2125.2,0.27251654]
[1625177065625,7.05356,2126.0,2125.3,0.14]
[1625177065728,20.9698,2127.2,2125.3,0.14]
[1625177065929,20.9698,2127.2,2125.4,0.2]
[1625177065930,3.5266438,2126.6,2125.4,0.2]
[1625177066037,3.5266438,2126.6,2125.2,0.27251654]
[1625177066038,4.7391,2126.4,2125.2,0.27251654]
[1625177066232,4.7391,2126.4,2124.9,2.81461763]
[1625177066233,9.7491,2126.4,2124.9,2.81461763]
[1625177066378,4.7391,2126.4,2124.8,10.85736132]
[1625177066480,9.40756,2125.6,2124.8,10.44806049]
[1625177066574,9.40756,2125.6,2124.9,0.06]
[1625177066725,9.40756,2125.6,2125.0,0.1]
[1625177067160,9.40756,2125.6,2124.8,0.27306049]
[1625177067512,13.04446,2125.6,2124.8,0.27306049]
[1625177067617,13.04446,2125.6,2124.7,0.27337948]
[1625177068012,13.04446,2125.6,2124.6,6.87]
[1625177069165,3.52893,2125.3,2124.6,6.87]
[1625177069291,7.05759,2125.0,2124.6,6.87]
[1625177069737,2.88011651,2125.0,2124.6,6.87]
[1625177069936,2.88011651,2125.0,2124.6,11.88]
[1625177070187,2.88011651,2125.0,2124.7,0.08]
[1625177071290,2.88011651,2125.0,2124.4,0.2737339]
[1625177071659,2.88011651,2125.0,2124.3,0.27388883]
[1625177071757,3.53042,2124.7,2124.3,0.27388883]
[1625177071859,5.01882,2124.7,2124.3,0.27388883]
[1625177071954,10.02882,2124.7,2124.3,0.27388883]
[1625177072067,10.02882,2124.7,2124.1,6.88093444]
[1625177072709,3.530778,2124.6,2124.1,6.88093444]
[1625177072809,9.125078,2124.6,2124.1,6.88093444]
[1625177072911,7.0617,2124.4,2124.1,6.88093444]
[1625177073907,7.0617,2124.4,2124.1,0.01093444]
[1625177074211,4.27584491,2124.4,2124.1,0.01093444]
[1625177075108,9.28584491,2124.4,2124.1,0.01093444]
[1625177075460,4.27584491,2124.4,2124.1,0.01093444]
[1625177076154,13.31014491,2124.4,2124.1,0.01093444]
[1625177076301,8.30014491,2124.4,2124.1,0.01093444]
[1625177076402,13.31014491,2124.4,2124.1,0.01093444]
[1625177077302,0.08,2124.3,2124.1,0.01093444]
[1625177077404,9.0343,2124.4,2124.1,0.01093444]
[1625177079060,7.0619,2124.2,2124.1,0.01093444]
[1625177079256,12.0719,2124.2,2124.1,0.01093444]
[1625177080307,20.0719,2124.2,2124.1,0.01093444]
[1625177080543,41.6279,2124.2,2124.1,0.01093444]
[1625177080739,21.6279,2124.2,2124.1,0.01093444]
[1625177080839,13.6279,2124.2,2124.1,0.01093444]
[1625177081239,13.5479,2124.2,2124.1,0.01093444]
[1625177082212,12.0719,2124.2,2124.1,0.01093444]
[1625177084456,20.0719,2124.2,2124.1,0.01093444]
[1625177084554,20.1519,2124.2,2124.1,0.01093444]
[1625177084755,12.1519,2124.2,2124.1,0.01093444]
[1625177085713,47.1519,2124.2,2124.1,0.01093444]
[1625177085810,65.1519,2124.2,2124.1,0.01093444]
[1625177086863,57.1519,2124.2,2124.1,0.01093444]
[1625177086963,47.1519,2124.2,2124.1,0.01093444]
[1625177087338,12.1519,2124.2,2124.1,0.01093444]
[1625177087434,12.0719,2124.2,2124.1,0.01093444]
[1625177090102,32.0719,2124.2,2124.1,0.01093444]
[1625177090204,17.28553746,2124.2,2124.1,0.01093444]
[1625177090303,17.36553746,2124.2,2124.1,0.01093444]
[1625177090453,32.36553746,2124.2,2124.1,0.01093444]
[1625177091003,17.36553746,2124.2,2124.1,0.01093444]
[1625177091504,9.36553746,2124.2,2124.1,0.01093444]
[1625177091607,9.28553746,2124.2,2124.1,0.01093444]
[1625177093186,4.27553746,2124.2,2124.1,0.01093444]
[1625177093337,4.27553746,2124.2,2124.1,4.26633444]
[1625177093441,9.41613,2124.3,2124.1,4.26633444]
[1625177093537,10.59136,2124.5,2124.1,4.26633444]
[1625177093787,7.06051,2124.5,2124.1,4.26633444]
[1625177094072,3.53001,2124.9,2124.2,0.08]
[1625177094264,3.53001,2124.9,2124.1,10.17783444]
[1625177094613,11.76917,2125.2,2124.1,10.17783444]
[1625177094966,7.05847,2125.0,2124.1,10.17783444]
[1625177099057,7.05847,2125.0,2124.2,0.06]
[1625177100509,7.05847,2125.0,2124.1,9.27633444]
[1625177101053,12.06847,2125.0,2124.1,4.26633444]
[1625177101157,3.52978,2124.9,2124.1,0.01093444]
[1625177101255,4.71238,2124.9,2124.1,0.01093444]
[1625177101353,9.72238,2124.9,2124.1,0.01093444]
[1625177101555,12.03893,2124.5,2124.1,0.01093444]
[1625177101806,17.04893,2124.5,2124.1,0.01093444]
[1625177102603,15.1,2124.4,2123.7,6.78093444]
[1625177102708,7.06131,2124.1,2123.7,6.78093444]
[1625177102804,11.1294,2124.5,2123.7,6.78093444]
[1625177102903,18.19068,2124.5,2123.7,6.78093444]
[1625177103568,13.18068,2124.5,2123.7,6.78093444]
[1625177104472,7.06083,2124.2,2123.7,6.78093444]
[1625177104920,7.06083,2124.2,2123.5,0.01093548]
[1625177105222,4.27453289,2124.2,2123.5,0.01093548]
[1625177106006,10.99297,2124.3,2123.5,0.01093548]
[1625177106007,1.5782,2124.3,2123.5,0.01093548]
[1625177106452,13.18068,2124.5,2123.5,0.01093548]
[1625177106550,9.65004,2124.5,2123.5,0.01093548]
[1625177106705,8.50924,2124.5,2123.5,0.01093548]
[1625177106803,7.06032,2124.4,2123.5,7.07141548]
[1625177107106,7.06032,2124.4,2123.5,12.08141548]
[1625177107308,7.06032,2124.4,2123.5,11.98141548]
[1625177107409,7.06032,2124.4,2123.6,0.08]
[1625177108666,13.73239,2124.8,2123.6,0.08]
[1625177109167,3.52989,2124.8,2123.6,0.08]
[1625177109265,3.52989,2124.8,2123.5,0.01093582]
[1625177109365,3.52989,2124.8,2124.2,0.06531777]
[1625177109565,3.52989,2124.8,2124.2,0.13063554]
[1625177109667,7.05977,2124.5,2124.2,0.13063554]
[1625177113345,12.06977,2124.5,2124.2,0.13063554]
[1625177113496,7.05977,2124.5,2124.2,0.13063554]
[1625177113647,0.08,2124.4,2124.2,0.13063554]
[1625177113747,45.3,2124.3,2124.2,3.554e-05]
[1625177113998,50.31,2124.3,2124.2,3.554e-05]
[1625177114093,5.01,2124.3,2124.2,3.554e-05]
[1625177114194,5.09,2124.3,2124.2,3.554e-05]
[1625177114296,0.08,2124.3,2124.2,3.554e-05]
[1625177114439,5.09,2124.3,2124.2,3.554e-05]
[1625177114644,5.09,2124.3,2123.5,0.01093582]
[1625177114744,0.08,2124.3,2123.5,0.01093582]
[1625177114841,3.53166,2124.0,2123.5,0.01093582]
[1625177114945,8.5579546,2123.9,2123.5,0.01093582]
[1625177115042,13.5679546,2123.9,2123.5,0.01093582]
[1625177115142,7.06332,2123.7,2123.5,0.01093582]
[1625177115541,12.07332,2123.7,2123.5,0.01093582]
[1625177115792,7.06332,2123.7,2123.5,0.01093582]
[1625177116200,14.12613,2124.1,2123.6,32.3]
[1625177116302,25.44895,2124.9,2123.6,32.3]
[1625177116303,21.76935,2124.9,2123.6,32.3]
[1625177116395,21.76935,2124.9,2123.7,0.18]
[1625177116496,11.77155,2124.9,2123.8,0.05903687]
[1625177116650,14.16123978,2125.2,2123.9,0.05543285]
[1625177116847,10.63149978,2125.2,2123.9,0.05543285]
[1625177117248,10.63149978,2125.2,2124.5,7.05841]
[1625177117352,0.54881086,2125.6,2124.5,11.91931]
[1625177117554,0.54881086,2125.6,2124.6,0.09420939]
[1625177117696,0.54881086,2125.6,2124.6,0.04]
[1625177117795,0.54881086,2125.6,2124.5,9.8709]
[1625177118148,0.54881086,2125.6,2124.5,13.44745665]
[1625177118247,0.54881086,2125.6,2124.5,16.04203936]
[1625177118353,0.00891108,2125.6,2125.1,7.05642]
[1625177118451,0.00891108,2125.6,2125.1,11.98002]
[1625177118548,0.00891108,2125.6,2125.1,16.99002]
[1625177118755,0.00891108,2125.6,2125.2,0.2]
[1625177120377,32.18524,2126.7,2125.7,7.0548]
[1625177120475,17.16464,2126.7,2125.7,7.0548]
[1625177120676,7.05494,2126.7,2125.7,7.0548]
[1625177120881,7.05494,2126.7,2125.6,4.4246]
[1625177121161,15.0,2126.6,2125.6,4.4246]
[1625177121265,20.0,2126.3,2125.6,4.4246]
[1625177121358,15.0,2126.3,2125.6,4.4246]
[1625177121555,0.08,2126.2,2125.6,4.4246]
[1625177121663,0.08,2126.2,2124.7,7.05785]
[1625177121664,7.05802,2125.7,2124.7,7.05785]
[1625177122059,12.06802,2125.7,2124.5,5.01]
[1625177122160,7.05802,2125.7,2124.4,16.76904]
[1625177122255,12.06802,2125.7,2124.4,16.76904]
[1625177122361,7.05802,2125.7,2124.4,16.76904]
[1625177122457,12.06802,2125.7,2124.4,16.76904]
[1625177123112,5.01,2125.7,2124.4,16.76904]
[1625177123211,5.01,2125.7,2124.5,4.5678]
[1625177123393,0.53989978,2125.8,2124.5,4.5678]
[1625177123543,0.53989978,2125.8,2124.5,9.5778]
[1625177123648,0.53989978,2125.8,2124.5,4.5678]
[1625177123792,0.53989978,2126.1,2124.6,0.2]
[1625177124290,0.48989978,2126.1,2124.6,0.2]
[1625177124542,0.48989978,2126.1,2124.7,0.04]
[1625177124895,20.0666,2126.2,2124.7,0.04]
[1625177125294,27.12233,2126.2,2125.2,7.05547]
[1625177125441,17.13023,2126.2,2125.2,7.05547]
[1625177125542,22.14023,2126.2,2125.2,12.06547]
[1625177125654,12.06573,2126.2,2125.2,7.05547]
[1625177125749,12.06573,2126.2,2125.0,9.40742]
[1625177125848,12.06573,2126.2,2124.7,9.40893]
[1625177125849,15.59429,2126.2,2124.7,9.40893]
[1625177125947,23.59429,2126.2,2124.7,9.40893]
[1625177126049,16.53856,2126.2,2124.7,9.40893]
[1625177126301,3.52874,2126.0,2124.7,9.40893]
[1625177126546,8.53874,2126.0,2124.7,9.40893]
[1625177126645,16.53874,2126.0,2124.7,9.40893]
[1625177126947,16.53874,2126.0,2124.7,14.41893]
[1625177127162,17.94834,2126.0,2124.7,14.41893]
[1625177127258,12.93834,2126.0,2124.7,14.41893]
[1625177127358,3.52856,2126.2,2124.8,0.16]
[1625177128205,7.05636,2126.0,2125.1,7.05582]
[1625177128307,9.40822,2126.3,2125.1,3.8033]
[1625177128407,2.9,2126.4,2125.1,8.8133]
[1625177128506,2.9,2126.4,2125.2,0.14]
[1625177128757,2.9,2126.4,2125.1,8.8133]
[1625177129060,2.9,2126.4,2125.1,16.8133]
[1625177129259,2.9,2126.4,2125.7,7.05432]
[1625177129361,20.8288,2126.7,2125.7,11.76012]
[1625177129362,10.7812,2126.7,2125.7,11.76012]
[1625177129460,10.7812,2126.7,2125.7,16.77012]
[1625177129565,1.00232,2126.8,2125.7,16.77012]
[1625177129810,1.00232,2126.8,2125.8,0.08]
[1625177130010,1.00232,2126.8,2125.8,0.1225376]
[1625177130117,6.87,2127.0,2125.9,36.2]
[1625177130268,10.65979978,2127.5,2125.9,44.2]
[1625177130361,10.65979978,2127.5,2126.0,0.06949404]
[1625177130466,10.65979978,2127.5,2126.7,7.05001]
[1625177130618,10.65979978,2127.5,2126.7,16.88881]
[1625177130716,11.0801,2127.9,2126.7,16.88881]
[1625177130817,0.2,2127.9,2126.8,0.527852]
[1625177130918,0.2,2127.9,2126.8,15.727852]
[1625177131016,10.21,2128.8,2127.0,0.3122289]
[1625177131168,0.2,2128.9,2127.0,15.3122289]
[1625177131272,0.2,2128.9,2127.1,1.11624]
[1625177131364,0.2,2128.9,2127.2,15.34131699]
[1625177131515,0.2,2128.9,2127.9,7.04582]
[1625177131616,0.2,2128.9,2128.0,0.14188251]
[1625177131764,0.2,2128.9,2128.0,0.34188251]
[1625177131963,0.13738098,2129.4,2128.1,36.15]
[1625177132062,0.13738098,2129.4,2128.2,15.23094083]
[1625177132219,0.20997749,2129.9,2128.3,0.2]
[1625177132414,0.20997749,2129.9,2128.4,4.62533394]
[1625177132562,0.20997749,2129.9,2128.5,15.0]
[1625177132708,0.20997749,2129.9,2128.4,12.22991665]
[1625177132957,0.20997749,2129.9,2128.6,0.24847483]
[1625177133060,0.20997749,2129.9,2128.6,2.84305754]
[1625177133164,0.20997749,2129.9,2129.0,7.04086]
[1625177133268,0.20997749,2129.9,2129.1,0.06409576]
[1625177133362,0.20997749,2129.9,2129.1,0.26409576]
[1625177133810,0.20997749,2129.9,2129.1,0.2]
[1625177134161,0.20997749,2129.9,2129.0,9.4447]